[Event "2nd Irena Warakomska Memorial-A"]
[Site "Suwalki"]
[Date "2018.08.04"]
[Round "5"]
[White "Gleizerov, Evgeny"]
[Black "Stupak, Kirill"]
[Result "1/2-1/2"]
[ECO "A50"]
[WhiteElo "2507"]
[BlackElo "2573"]
[Annotator "ChessBase"]
[PlyCount "38"]
[EventDate "2018.08.01"]
[EventType "swiss"]
[EventCountry "POL"]
[SourceTitle "playchess.com"]
[Source "ChessBase"]
[SourceQuality "1"]
[TimeControl "40/5400+30:1800+30"]

1. d4 {[%emt 0:00:00]} Nf6 {[%emt 0:06:22]} 2. c4 {[%emt 0:00:00]} b6 {[%emt 0:00:08]} 3. Nc3 {[%emt 0:00:00]} Bb7 {[%emt 0:00:05]} 4. Qc2 {[%emt 0:00:00]} d5 {[%emt 0:00:12]} 5. Nf3 {[%emt 0:00:09]} e6 {[%emt 0:01:21]} 6. cxd5 {[%emt 0:00:08]} Nxd5 {[%emt 0:00:22]} 7. e4 {[%emt 0:00:09]} Nxc3 {[%emt 0:00:06]} 8. bxc3 {[%emt 0:00:03]} Be7 {[%emt 0:00:08]} 9. Bb5+ {[%emt 0:00:16]} c6 {[%emt 0:00:44]} 10. Bd3 {[%emt 0:00:07]} c5 {[%emt 0:00:08]} 11. Bb5+ {[%emt 0:07:18]} Bc6 {[%emt 0:00:39]} 12. Bxc6+ {[%emt 0:00:40]} Nxc6 {[%emt 0:00:03]} 13. Qa4 {[%emt 0:03:55]} Qd7 {[%emt 0:02:12]} 14. O-O {[%emt 0:01:15]} O-O {[%emt 0:02:54]} 15. Be3 {[%emt 0:00:36]} Ne5 {[%emt 0:05:47]} 16. Qxd7 {[%emt 0:05:08]} Nxd7 {[%emt 0:00:59]} 17. a4 {[%emt 0:01:00]} Rfc8 {[%emt 0:04:54]} 18. Rfb1 {[%emt 0:04:37]} Nf6 {[%emt 0:12:09]} 19. Bg5 {[%emt 0:01:26]} cxd4 {[%emt 0:05:31]} 1/2-1/2

[Event "2nd Irena Warakomska Memorial-A"]
[Site "Suwalki"]
[Date "2018.08.04"]
[Round "5"]
[White "Karthik Venkataraman"]
[Black "Dzhuguryan, Tygran"]
[Result "1/2-1/2"]
[ECO "B12"]
[WhiteElo "2502"]
[BlackElo "2179"]
[Annotator "RC"]
[PlyCount "99"]
[EventDate "2018.08.01"]
[EventType "swiss"]
[EventCountry "POL"]
[SourceTitle "playchess.com"]
[Source "ChessBase"]
[SourceQuality "1"]
[TimeControl "40/5400+30:1800+30"]

1. e4 {[%emt 0:00:00]} c6 {[%emt 0:00:00]} 2. d4 {[%emt 0:00:00]} d5 {[%emt 0:00:01]} 3. e5 {[%emt 0:00:00]} Bf5 {[%emt 0:00:19]} 4. Nf3 {[%emt 0:00:00]} e6 {[%emt 0:00:05]} 5. Be2 {[%emt 0:00:00]} Nd7 {[%emt 0:00:16]} 6. O-O {[%emt 0:00:00]} h6 {[%emt 0:00:09]} 7. c3 {[%emt 0:00:44]} Ne7 {[%emt 0:00:16]} 8. a4 {[%emt 0:00:12]} Nc8 {[%emt 0:00:33]} 9. a5 {[%emt 0:01:16]} a6 {[%emt 0:00:06]} 10. b4 {[%emt 0:01:11]} Be7 {[%emt 0:01:05]} 11. Nbd2 {[%emt 0:01:26]} O-O {[%emt 0:01:02]} 12. Ne1 {[%emt 0:00:46]} f6 {[%emt 0:03:22]} 13. f4 {[%emt 0:00:09]} fxe5 {[%emt 0:00:18]} 14. fxe5 {[%emt 0:00:05]} Bg6 {[%emt 0:01:15]} 15. Ndf3 {[%emt 0:00:47]} Na7 {[%emt 0:00:16]} 16. Nd3 {[%emt 0:01:06]} Nb5 {[%emt 0:00:42]} 17. Qe1 {[%emt 0:00:13]} Qe8 {[%emt 0:06:53]} 18. h3 {[%emt 0:00:20]} Be4 {[%emt 0:01:41]} 19. Be3 {[%emt 0:01:01]} Kh8 {[%emt 0:05:04]} 20. Rc1 {[%emt 0:00:17]} Nc7 {[%emt 0:02:20]} 21. Nf4 {[%emt 0:03:34]} g5 {[%emt 0:06:13]} 22. Nd3 {[%emt 0:00:11]} Qg6 {[%emt 0:00:20]} 23. Nf2 {[%emt 0:00:15]} Bf5 {[%emt 0:01:34]} 24. Qd1 {[%emt 0:09:13]} Qh7 {[%emt 0:00:55]} 25. Qd2 {[%emt 0:14:45]} Rg8 {[%emt 0:00:50]} 26. g4 {[%emt 0:01:19]} Bg6 {[%emt 0:03:23]} 27. Nh1 {[%emt 0:00:17]} Raf8 {[%emt 0:16:30]} 28. Ng3 {[%emt 0:00:21]} Nb5 {[%emt 0:00:36]} 29. Rf2 {[%emt 0:03:55]} Rf7 {[%emt 0:00:29]} 30. Rcf1 {[%emt 0:01:19]} Kg7 {[%emt 0:04:20]} 31. Rh2 {[%emt 0:00:39]} Kf8 {[%emt 0:00:07]} 32. h4 {[%emt 0:00:44]} gxh4 {[%emt 0:02:52]} 33. Nxh4 {[%emt 0:00:59]} Rxf1+ {[%emt 0:02:04]} 34. Kxf1 {[%emt 0:00:09]} Ke8 {[%emt 0:08:41]} 35. Nxg6 {[%emt 0:01:49]} Qxg6 {[%emt 0:00:14]} 36. Rxh6 {[%emt 0:00:38]} Qb1+ {[%emt 0:01:15]} 37. Kg2 {[%emt 0:00:05]} Qa1 {[%emt 0:02:03]} 38. Rxe6 {[%emt 0:24:38]} Nf8 {[%emt 0:01:48]} 39. Rxe7+ {[%emt 0:05:18]} Kxe7 {[%emt 0:00:02]} 40. Bg5+ {[%emt 0:00:00]} Ke8 {[%emt 0:00:00]} 41. Nh5 {[%emt 0:04:43]} Qxc3 {[%emt 0:06:49]} 42. Nf6+ {[%emt 0:01:12]} Kf7 {[%emt 0:00:03]} 43. Nxg8 {[%emt 0:00:56]} Kxg8 {[%emt 0:00:17]} 44. Qf4 {[%emt 0:09:12]} Qxd4 {[%emt 0:00:20]} 45. Qf5 {[%emt 0:00:50]} Qxb4 {[%emt 0:06:14]} 46. Bf6 {[%emt 0:10:01]} Qd2 {[%emt 0:03:26]} 47. Kh3 {[%emt 0:02:35]} Nd4 {[%emt 0:01:51]} 48. Qh5 {[%emt 0:00:29]} Qe3+ {[%emt 0:00:44]} 49. Kh4 {[%emt 0:00:08]} Qf2+ {[%emt 0:00:37]} 50. Kh3 1/2-1/2

[Event "2nd Irena Warakomska Memorial-A"]
[Site "Suwalki"]
[Date "2018.08.04"]
[Round "5"]
[White "Caspi, Israel"]
[Black "Aleksandrov, Aleksej"]
[Result "0-1"]
[ECO "C92"]
[WhiteElo "2454"]
[BlackElo "2585"]
[Annotator "ChessBase"]
[PlyCount "148"]
[EventDate "2018.08.01"]
[EventType "swiss"]
[EventCountry "POL"]
[SourceTitle "playchess.com"]
[Source "ChessBase"]
[SourceQuality "1"]
[TimeControl "40/5400+30:1800+30"]

1. e4 {[%emt 0:00:00]} e5 {[%emt 0:00:33]} 2. Nf3 {[%emt 0:00:00]} Nc6 {[%emt 0:00:04]} 3. Bb5 {[%emt 0:00:00]} a6 {[%emt 0:00:04]} 4. Ba4 {[%emt 0:00:00]} Nf6 {[%emt 0:00:04]} 5. O-O {[%emt 0:00:00]} Be7 {[%emt 0:00:06]} 6. Re1 {[%emt 0:00:07]} b5 {[%emt 0:00:04]} 7. Bb3 {[%emt 0:00:04]} O-O {[%emt 0:00:05]} 8. c3 {[%emt 0:01:43]} d6 {[%emt 0:00:11]} 9. h3 {[%emt 0:00:10]} Nd7 {[%emt 0:01:25]} 10. d4 {[%emt 0:00:20]} Bf6 {[%emt 0:00:03]} 11. a4 {[%emt 0:04:11]} Rb8 {[%emt 0:00:06]} 12. axb5 {[%emt 0:03:20]} axb5 {[%emt 0:00:04]} 13. Be3 {[%emt 0:05:33]} Ne7 {[%emt 0:04:58]} 14. d5 {[%emt 0:07:50]} Nb6 {[%emt 0:00:09]} 15. Na3 {[%emt 0:04:25]} Bd7 {[%emt 0:00:03]} 16. Nc2 {[%emt 0:18:49]} h6 {[%emt 0:06:28]} 17. Nb4 {[%emt 0:02:38]} Kh7 {[%emt 0:00:17]} 18. Ra7 {[%emt 0:10:15]} Nec8 {[%emt 0:04:02]} 19. Ra6 {[%emt 0:05:25]} Qe8 {[%emt 0:00:07]} 20. Bc2 {[%emt 0:01:37]} g6 {[%emt 0:01:29]} 21. Kh2 {[%emt 0:04:04]} Bg7 {[%emt 0:01:04]} 22. g4 {[%emt 0:00:06]} Na4 {[%emt 0:10:36]} 23. Nc6 {[%emt 0:02:16]} Rb7 {[%emt 0:00:39]} 24. Na5 {[%emt 0:02:02]} Rb8 {[%emt 0:00:01]} 25. Nc6 {[%emt 0:00:39]} Rb7 {[%emt 0:00:09]} 26. Nd2 {[%emt 0:19:55]} Ne7 {[%emt 0:02:51]} 27. Na5 {[%emt 0:02:51]} Rb8 {[%emt 0:01:24]} 28. Ra7 {[%emt 0:00:41]} Ra8 {[%emt 0:01:27]} 29. Bxa4 {[%emt 0:01:54]} Rxa7 {[%emt 0:05:09]} 30. Bxa7 {[%emt 0:00:05]} bxa4 {[%emt 0:00:22]} 31. Be3 {[%emt 0:00:57]} f5 {[%emt 0:00:40]} 32. f3 {[%emt 0:00:25]} h5 {[%emt 0:09:09]} 33. Nac4 {[%emt 0:00:16]} Bh6 {[%emt 0:01:00]} 34. Bxh6 {[%emt 0:01:20]} Kxh6 {[%emt 0:00:02]} 35. Ne3 {[%emt 0:00:48]} Qb8 {[%emt 0:15:16]} 36. Qc1 {[%emt 0:00:05]} f4 {[%emt 0:01:16]} 37. Nc2 {[%emt 0:00:57]} Qb6 {[%emt 0:01:16]} 38. Re2 {[%emt 0:00:39]} g5 {[%emt 0:01:52]} 39. Nb4 {[%emt 0:01:11]} hxg4 {[%emt 0:00:20]} 40. hxg4 {[%emt 0:00:00]} Kg7 {[%emt 0:00:00]} 41. Qg1 {[%emt 0:02:58]} Rh8+ {[%emt 0:10:53]} 42. Kg2 {[%emt 0:00:08]} Qb8 {[%emt 0:03:00]} 43. Nd3 {[%emt 0:04:49]} Ng6 {[%emt 0:07:50]} 44. c4 {[%emt 0:04:26]} Qa8 {[%emt 0:07:54]} 45. Re1 {[%emt 0:09:12]} Rh4 {[%emt 0:08:09]} 46. Nf2 {[%emt 0:01:56]} Qa5 {[%emt 0:00:51]} 47. Re2 {[%emt 0:01:06]} Rh8 {[%emt 0:05:19]} 48. Qc1 {[%emt 0:01:26]} Ra8 {[%emt 0:03:15]} 49. Nd3 {[%emt 0:02:50]} Kf6 {[%emt 0:01:20]} 50. Rf2 {[%emt 0:01:14]} Qa7 {[%emt 0:03:00]} 51. Qc3 {[%emt 0:04:08]} Rh8 {[%emt 0:02:19]} 52. c5 {[%emt 0:00:09]} Bb5 {[%emt 0:00:17]} 53. Nc4 {[%emt 0:00:30]} Qb8 {[%emt 0:06:22]} 54. cxd6 {[%emt 0:00:53]} cxd6 {[%emt 0:00:05]} 55. Qb4 {[%emt 0:01:00]} Nh4+ {[%emt 0:00:38]} 56. Kf1 {[%emt 0:01:04]} Rc8 {[%emt 0:00:27]} 57. Rc2 {[%emt 0:00:46]} Nxf3 {[%emt 0:00:52]} 58. Kf2 {[%emt 0:00:42]} Nd4 {[%emt 0:02:18]} 59. Rc3 {[%emt 0:00:13]} Bxc4 {[%emt 0:00:29]} 60. Rxc4 {[%emt 0:01:32]} Qxb4 {[%emt 0:00:12]} 61. Rxb4 {[%emt 0:00:05]} Rc2+ {[%emt 0:00:12]} 62. Kf1 {[%emt 0:00:20]} Rd2 {[%emt 0:01:02]} 63. Nf2 {[%emt 0:00:05]} Nc2 {[%emt 0:02:27]} 64. Rxa4 {[%emt 0:00:18]} Ne3+ {[%emt 0:00:05]} 65. Kg1 {[%emt 0:00:11]} Rxb2 {[%emt 0:00:07]} 66. Ra1 {[%emt 0:01:16]} Ke7 {[%emt 0:00:07]} 67. Ra7+ {[%emt 0:01:19]} Kd8 {[%emt 0:00:16]} 68. Ra6 {[%emt 0:00:04]} Kc7 {[%emt 0:00:08]} 69. Rc6+ {[%emt 0:00:13]} Kd7 {[%emt 0:00:04]} 70. Rc1 {[%emt 0:00:04]} f3 {[%emt 0:03:46]} 71. Ra1 {[%emt 0:00:21]} Nxg4 {[%emt 0:00:14]} 72. Ra7+ {[%emt 0:00:31]} Kc8 {[%emt 0:00:09]} 73. Nxg4 {[%emt 0:00:56]} Rg2+ {[%emt 0:00:03]} 74. Kf1 {[%emt 0:00:04]} Rxg4 {[%emt 0:00:05]} 0-1

[Event "2nd Irena Warakomska Memorial-A"]
[Site "Suwalki"]
[Date "2018.08.04"]
[Round "5"]
[White "Grinev, Valeriy"]
[Black "Chylewski, Patryk"]
[Result "1-0"]
[ECO "D31"]
[WhiteElo "2416"]
[BlackElo "2270"]
[Annotator "NA"]
[PlyCount "91"]
[EventDate "2018.08.01"]
[EventType "swiss"]
[EventCountry "POL"]
[SourceTitle "playchess.com"]
[Source "ChessBase"]
[SourceQuality "1"]
[TimeControl "40/5400+30:1800+30"]

1. d4 {[%emt 0:00:17]} d5 {[%emt 0:00:00]} 2. c4 {[%emt 0:00:08]} e6 {[%emt 0:00:00]} 3. Nc3 {[%emt 0:00:06]} a6 {[%emt 0:00:00]} 4. cxd5 {[%emt 0:00:06]} exd5 {[%emt 0:00:00]} 5. Qb3 {[%emt 0:00:07]} Nc6 {[%emt 0:00:55]} 6. Nf3 {[%emt 0:00:14]} Bf5 {[%emt 0:02:53]} 7. Bf4 {[%emt 0:15:04]} Bd6 {[%emt 0:08:47]} 8. Qxb7 {[%emt 0:27:11]} Nge7 {[%emt 0:00:51]} 9. Bxd6 {[%emt 0:00:10]} cxd6 {[%emt 0:00:06]} 10. e3 {[%emt 0:10:54]} O-O {[%emt 0:05:28]} 11. Rc1 {[%emt 0:00:17]} a5 {[%emt 0:24:05]} 12. Qb3 {[%emt 0:06:43]} Rb8 {[%emt 0:05:08]} 13. Nb5 {[%emt 0:00:09]} Na7 {[%emt 0:06:22]} 14. a4 {[%emt 0:00:13]} Bd7 {[%emt 0:02:05]} 15. Be2 {[%emt 0:03:22]} Qb6 {[%emt 0:03:40]} 16. Nd2 {[%emt 0:00:18]} Nxb5 {[%emt 0:02:00]} 17. Bxb5 {[%emt 0:00:07]} Bxb5 {[%emt 0:00:21]} 18. axb5 {[%emt 0:00:06]} Qxb5 {[%emt 0:00:32]} 19. Qxb5 {[%emt 0:00:06]} Rxb5 {[%emt 0:00:09]} 20. b3 {[%emt 0:00:04]} Rfb8 {[%emt 0:03:40]} 21. Ke2 {[%emt 0:00:26]} Kf8 {[%emt 0:00:38]} 22. Rc7 {[%emt 0:01:02]} R8b7 {[%emt 0:00:37]} 23. Rhc1 {[%emt 0:00:41]} Ke8 {[%emt 0:00:43]} 24. g4 {[%emt 0:02:52]} Kd8 {[%emt 0:03:07]} 25. R7c3 {[%emt 0:00:13]} Kd7 {[%emt 0:01:52]} 26. h4 {[%emt 0:01:15]} R5b6 {[%emt 0:01:20]} 27. Ra1 {[%emt 0:01:21]} Rc6 {[%emt 0:02:02]} 28. Rxc6 {[%emt 0:01:13]} Nxc6 {[%emt 0:00:06]} 29. Ra3 {[%emt 0:00:06]} Ra7 {[%emt 0:03:05]} 30. Nb1 {[%emt 0:00:51]} Nb4 {[%emt 0:03:13]} 31. Kd2 {[%emt 0:00:12]} Kc6 {[%emt 0:01:26]} 32. Nc3 {[%emt 0:00:11]} Kb6 {[%emt 0:00:59]} 33. Ra1 {[%emt 0:00:07]} Re7 {[%emt 0:02:55]} 34. h5 {[%emt 0:01:40]} h6 {[%emt 0:03:13]} 35. Rg1 {[%emt 0:00:22]} f6 {[%emt 0:01:21]} 36. Rc1 {[%emt 0:00:51]} Rf7 {[%emt 0:07:21]} 37. Ne2 {[%emt 0:06:53]} Nc6 {[%emt 0:05:06]} 38. Nf4 {[%emt 0:01:01]} Ne7 {[%emt 0:01:55]} 39. Ke2 {[%emt 0:03:23]} f5 {[%emt 0:00:48]} 40. Rg1 {[%emt 0:00:00]} Kc6 {[%emt 0:00:00]} 41. g5 {[%emt 0:01:13]} hxg5 {[%emt 0:05:46]} 42. Rxg5 {[%emt 0:00:08]} Kb5 {[%emt 0:02:23]} 43. Kd3 {[%emt 0:00:26]} Kb4 {[%emt 0:01:14]} 44. Kc2 {[%emt 0:00:06]} Ka3 {[%emt 0:00:47]} 45. Rg1 {[%emt 0:00:22]} Ka2 {[%emt 0:02:43]} 46. Ne2 {[%emt 0:00:37]} 1-0

[Event "2nd Irena Warakomska Memorial-A"]
[Site "Suwalki"]
[Date "2018.08.04"]
[Round "5"]
[White "Cukrowski, Filip"]
[Black "Bykovskiy, Oleg"]
[Result "1-0"]
[ECO "B31"]
[WhiteElo "2404"]
[BlackElo "2263"]
[Annotator "NA"]
[PlyCount "79"]
[EventDate "2018.08.01"]
[EventType "swiss"]
[EventCountry "POL"]
[SourceTitle "playchess.com"]
[Source "ChessBase"]
[SourceQuality "1"]
[TimeControl "40/5400+30:1800+30"]

1. e4 {[%emt 0:00:00]} c5 {[%emt 0:00:00]} 2. Nf3 {[%emt 0:00:00]} Nc6 {[%emt 0:00:00]} 3. Bb5 {[%emt 0:01:56]} g6 {[%emt 0:00:00]} 4. c3 {[%emt 0:01:27]} Bg7 {[%emt 0:00:03]} 5. d4 {[%emt 0:00:27]} cxd4 {[%emt 0:00:14]} 6. cxd4 {[%emt 0:00:18]} Nf6 {[%emt 0:00:31]} 7. Nc3 {[%emt 0:06:51]} d5 {[%emt 0:02:32]} 8. Ne5 {[%emt 0:02:07]} O-O {[%emt 0:02:01]} 9. Nxc6 {[%emt 0:01:55]} bxc6 {[%emt 0:00:06]} 10. Bxc6 {[%emt 0:00:22]} Rb8 {[%emt 0:00:03]} 11. e5 {[%emt 0:00:51]} Ne4 {[%emt 0:00:24]} 12. Nxe4 {[%emt 0:01:43]} dxe4 {[%emt 0:00:04]} 13. O-O {[%emt 0:00:15]} Bb7 {[%emt 0:00:05]} 14. Bxb7 {[%emt 0:00:52]} Rxb7 {[%emt 0:00:06]} 15. Re1 {[%emt 0:09:16]} Qd5 {[%emt 0:00:42]} 16. b3 {[%emt 0:00:25]} Rd8 {[%emt 0:00:20]} 17. Be3 {[%emt 0:01:02]} f6 {[%emt 0:01:21]} 18. Rc1 {[%emt 0:02:07]} fxe5 {[%emt 0:00:48]} 19. dxe5 {[%emt 0:03:45]} Bxe5 {[%emt 0:11:45]} 20. Qg4 {[%emt 0:04:49]} Rbd7 {[%emt 0:03:45]} 21. Rc5 {[%emt 0:01:23]} Qd6 {[%emt 0:06:40]} 22. g3 {[%emt 0:01:31]} Bf6 {[%emt 0:02:53]} 23. Qxe4 {[%emt 0:00:34]} Kg7 {[%emt 0:00:41]} 24. b4 {[%emt 0:11:52]} Qb8 {[%emt 0:03:44]} 25. Kg2 {[%emt 0:03:33]} Rd1 {[%emt 0:04:41]} 26. Rxd1 {[%emt 0:01:43]} Rxd1 {[%emt 0:00:05]} 27. Bf4 {[%emt 0:03:12]} Qb6 28. Rc7 {[%emt 0:04:11]} Rd8 {[%emt 0:13:42]} 29. Rb7 {[%emt 0:01:04]} Qd4 {[%emt 0:01:16]} 30. Rxe7+ {[%emt 0:00:29]} Kh8 {[%emt 0:00:12]} 31. Qxd4 {[%emt 0:02:05]} Bxd4 {[%emt 0:00:18]} 32. Be5+ {[%emt 0:02:18]} Bxe5 {[%emt 0:01:00]} 33. Rxe5 {[%emt 0:00:04]} Rd7 {[%emt 0:00:04]} 34. a4 {[%emt 0:00:49]} Kg7 {[%emt 0:00:32]} 35. b5 {[%emt 0:02:22]} Kf6 {[%emt 0:00:06]} 36. Re4 {[%emt 0:00:06]} Kf5 {[%emt 0:00:14]} 37. Rb4 {[%emt 0:00:20]} Ke5 {[%emt 0:00:08]} 38. a5 {[%emt 0:00:07]} Kd5 {[%emt 0:00:04]} 39. b6 {[%emt 0:00:20]} axb6 {[%emt 0:00:46]} 40. axb6 {[%emt 0:00:00]} 1-0

[Event "2nd Irena Warakomska Memorial-A"]
[Site "Suwalki"]
[Date "2018.08.04"]
[Round "5"]
[White "Rahul Srivatshav P"]
[Black "Godzwon, Iwo"]
[Result "1/2-1/2"]
[ECO "A37"]
[WhiteElo "2388"]
[BlackElo "2222"]
[Annotator "NA"]
[PlyCount "41"]
[EventDate "2018.08.01"]
[EventType "swiss"]
[EventCountry "POL"]
[SourceTitle "playchess.com"]
[Source "ChessBase"]
[SourceQuality "1"]
[TimeControl "40/5400+30:1800+30"]

1. Nf3 {[%emt 0:00:00]} c5 {[%emt 0:00:00]} 2. c4 {[%emt 0:00:55]} Nc6 {[%emt 0:00:00]} 3. g3 {[%emt 0:05:53]} g6 {[%emt 0:00:00]} 4. Bg2 {[%emt 0:01:49]} Bg7 {[%emt 0:00:04]} 5. Nc3 {[%emt 0:00:08]} d6 {[%emt 0:00:04]} 6. O-O {[%emt 0:00:43]} e6 {[%emt 0:00:04]} 7. e3 {[%emt 0:09:45]} Nge7 {[%emt 0:00:37]} 8. d4 {[%emt 0:02:43]} O-O {[%emt 0:00:06]} 9. Re1 {[%emt 0:17:07]} Rb8 {[%emt 0:05:13]} 10. b3 {[%emt 0:11:45]} a6 {[%emt 0:07:13]} 11. Bb2 {[%emt 0:01:04]} b5 {[%emt 0:01:33]} 12. dxc5 {[%emt 0:03:15]} dxc5 {[%emt 0:00:05]} 13. cxb5 {[%emt 0:04:04]} axb5 {[%emt 0:00:27]} 14. Qe2 {[%emt 0:01:03]} f5 {[%emt 0:14:23]} 15. a4 {[%emt 0:04:38]} bxa4 {[%emt 0:04:23]} 16. Nxa4 {[%emt 0:00:11]} Bxb2 {[%emt 0:00:04]} 17. Nxb2 {[%emt 0:00:08]} Rxb3 {[%emt 0:00:45]} 18. Qc2 {[%emt 0:03:14]} Rb5 {[%emt 0:05:03]} 19. Bf1 {[%emt 0:04:40]} Ra5 {[%emt 0:02:57]} 20. Rxa5 {[%emt 0:04:19]} Qxa5 {[%emt 0:00:20]} 21. Rc1 {[%emt 0:00:36]} 1/2-1/2

[Event "2nd Irena Warakomska Memorial-A"]
[Site "Suwalki"]
[Date "2018.08.04"]
[Round "5"]
[White "Tihonov, Jurij"]
[Black "Ovsejevitsch, Sergei"]
[Result "1/2-1/2"]
[ECO "E12"]
[WhiteElo "2385"]
[BlackElo "2597"]
[Annotator "ChessBase"]
[PlyCount "72"]
[EventDate "2018.08.01"]
[EventType "swiss"]
[EventCountry "POL"]
[SourceTitle "playchess.com"]
[Source "ChessBase"]
[SourceQuality "1"]
[TimeControl "40/5400+30:1800+30"]

1. d4 {[%emt 0:00:00]} Nf6 {[%emt 0:00:00]} 2. Nf3 {[%emt 0:00:10]} e6 {[%emt 0:00:12]} 3. c4 {[%emt 0:00:18]} b6 {[%emt 0:00:27]} 4. a3 {[%emt 0:00:17]} Bb7 {[%emt 0:00:52]} 5. Nc3 {[%emt 0:00:13]} g6 {[%emt 0:00:36]} 6. Qc2 {[%emt 0:05:17]} Bg7 {[%emt 0:00:50]} 7. e4 {[%emt 0:04:54]} O-O {[%emt 0:01:42]} 8. Bd3 {[%emt 0:00:53]} d6 {[%emt 0:01:33]} 9. O-O {[%emt 0:03:10]} Nbd7 {[%emt 0:00:23]} 10. Re1 {[%emt 0:05:07]} a6 {[%emt 0:06:48]} 11. h3 {[%emt 0:04:49]} c5 {[%emt 0:04:10]} 12. d5 {[%emt 0:02:30]} exd5 {[%emt 0:01:00]} 13. exd5 {[%emt 0:06:58]} b5 {[%emt 0:05:18]} 14. cxb5 {[%emt 0:02:36]} axb5 {[%emt 0:02:38]} 15. Bxb5 {[%emt 0:22:19]} Nxd5 {[%emt 0:05:32]} 16. Nxd5 {[%emt 0:02:48]} Bxd5 {[%emt 0:00:30]} 17. Qd3 {[%emt 0:00:42]} Nf6 {[%emt 0:09:01]} 18. a4 {[%emt 0:08:23]} Bb7 {[%emt 0:17:23]} 19. Bf4 {[%emt 0:05:46]} Nd5 {[%emt 0:01:43]} 20. Bg5 {[%emt 0:01:59]} Qb6 {[%emt 0:03:26]} 21. Rad1 {[%emt 0:05:31]} h6 {[%emt 0:09:05]} 22. Bc1 {[%emt 0:04:51]} Nc7 {[%emt 0:05:57]} 23. Qxd6 {[%emt 0:01:00]} Qxd6 {[%emt 0:00:06]} 24. Rxd6 {[%emt 0:00:10]} Nxb5 {[%emt 0:00:06]} 25. axb5 {[%emt 0:00:04]} Rfb8 {[%emt 0:03:31]} 26. b6 {[%emt 0:04:24]} Bf8 {[%emt 0:01:22]} 27. Rd3 {[%emt 0:02:23]} Ba6 {[%emt 0:02:11]} 28. Ra3 {[%emt 0:02:20]} Rxb6 {[%emt 0:01:33]} 29. Be3 {[%emt 0:00:57]} Rbb8 {[%emt 0:06:15]} 30. Rea1 {[%emt 0:01:45]} Bb7 {[%emt 0:00:12]} 31. Ne5 {[%emt 0:00:41]} Rxa3 {[%emt 0:01:04]} 32. Rxa3 {[%emt 0:00:26]} Bc8 {[%emt 0:07:01]} 33. Rc3 {[%emt 0:02:01]} Rxb2 {[%emt 0:02:11]} 34. Bxc5 {[%emt 0:00:04]} Bg7 {[%emt 0:00:43]} 35. Bd4 {[%emt 0:00:10]} Rb1+ {[%emt 0:00:22]} 36. Kh2 {[%emt 0:00:06]} Be6 {[%emt 0:00:29]} 1/2-1/2

[Event "2nd Irena Warakomska Memorial-A"]
[Site "Suwalki"]
[Date "2018.08.04"]
[Round "5"]
[White "Roy, Prantik"]
[Black "Sliwicki, Damian"]
[Result "1/2-1/2"]
[ECO "B22"]
[WhiteElo "2377"]
[BlackElo "2220"]
[Annotator "NA"]
[PlyCount "110"]
[EventDate "2018.08.01"]
[EventType "swiss"]
[EventCountry "POL"]
[SourceTitle "playchess.com"]
[Source "ChessBase"]
[SourceQuality "1"]
[TimeControl "40/5400+30:1800+30"]

1. e4 {[%emt 0:00:00]} c5 {[%emt 0:00:47]} 2. c3 {[%emt 0:00:01]} d5 {[%emt 0:00:59]} 3. exd5 {[%emt 0:00:10]} Qxd5 {[%emt 0:00:03]} 4. d4 {[%emt 0:00:08]} cxd4 {[%emt 0:00:41]} 5. cxd4 {[%emt 0:00:08]} Nc6 {[%emt 0:00:07]} 6. Nf3 {[%emt 0:00:27]} e5 {[%emt 0:00:10]} 7. Nc3 {[%emt 0:00:22]} Bb4 {[%emt 0:00:11]} 8. Bd2 {[%emt 0:00:19]} Bxc3 {[%emt 0:00:22]} 9. Bxc3 {[%emt 0:00:07]} exd4 {[%emt 0:01:17]} 10. Nxd4 {[%emt 0:02:53]} Nge7 {[%emt 0:19:23]} 11. Nb5 {[%emt 0:18:35]} O-O {[%emt 0:02:13]} 12. Nc7 {[%emt 0:01:19]} Qxd1+ {[%emt 0:02:19]} 13. Rxd1 {[%emt 0:00:11]} Rb8 {[%emt 0:00:05]} 14. Bc4 {[%emt 0:03:49]} a6 {[%emt 0:01:41]} 15. O-O {[%emt 0:03:48]} Bf5 {[%emt 0:06:46]} 16. Rfe1 {[%emt 0:07:55]} Rfd8 {[%emt 0:03:03]} 17. Nd5 {[%emt 0:03:22]} Nxd5 {[%emt 0:02:01]} 18. Bxd5 {[%emt 0:00:21]} h6 {[%emt 0:04:25]} 19. f3 {[%emt 0:01:02]} Rd7 {[%emt 0:06:36]} 20. Bb3 {[%emt 0:05:41]} Rxd1 {[%emt 0:01:27]} 21. Rxd1 {[%emt 0:00:20]} Rd8 {[%emt 0:00:47]} 22. Rxd8+ {[%emt 0:00:24]} Nxd8 {[%emt 0:00:04]} 23. a4 {[%emt 0:02:09]} Kf8 {[%emt 0:13:10]} 24. Kf2 {[%emt 0:01:34]} f6 {[%emt 0:02:48]} 25. Ke3 {[%emt 0:03:48]} Be6 {[%emt 0:02:29]} 26. Bc2 {[%emt 0:01:12]} Nc6 {[%emt 0:01:16]} 27. b4 {[%emt 0:03:02]} Bc4 {[%emt 0:00:22]} 28. Bf5 {[%emt 0:00:44]} Ke7 {[%emt 0:07:25]} 29. Bd4 {[%emt 0:06:31]} Be6 {[%emt 0:16:33]} 30. Bc5+ {[%emt 0:01:13]} Kd7 {[%emt 0:01:07]} 31. Bd3 {[%emt 0:02:46]} Ne7 {[%emt 0:01:21]} 32. Be4 {[%emt 0:01:57]} b6 {[%emt 0:02:20]} 33. Bd4 {[%emt 0:07:58]} Nf5+ {[%emt 0:01:30]} 34. Bxf5 {[%emt 0:03:06]} Bxf5 {[%emt 0:00:03]} 35. Bxb6 {[%emt 0:00:05]} Bc2 {[%emt 0:00:17]} 36. Bc5 {[%emt 0:01:18]} Bxa4 {[%emt 0:00:47]} 37. Bf8 {[%emt 0:00:06]} g6 {[%emt 0:00:17]} 38. Bxh6 {[%emt 0:00:15]} Ke6 {[%emt 0:00:04]} 39. Kf4 {[%emt 0:00:58]} Bc2 {[%emt 0:00:34]} 40. h4 {[%emt 0:00:00]} Bd3 {[%emt 0:00:00]} 41. Ke3 {[%emt 0:01:28]} Bf1 {[%emt 0:05:01]} 42. g3 {[%emt 0:00:06]} Bb5 {[%emt 0:02:24]} 43. Bf8 {[%emt 0:00:22]} Be8 {[%emt 0:00:27]} 44. Bc5 {[%emt 0:00:16]} g5 {[%emt 0:01:07]} 45. Bb6 {[%emt 0:01:46]} gxh4 {[%emt 0:04:34]} 46. gxh4 {[%emt 0:00:06]} Kf5 {[%emt 0:00:18]} 47. Bd8 {[%emt 0:00:31]} Bh5 {[%emt 0:00:58]} 48. Bc7 {[%emt 0:00:41]} Be8 {[%emt 0:00:08]} 49. Kd4 {[%emt 0:00:25]} Bh5 {[%emt 0:00:39]} 50. f4 {[%emt 0:00:15]} Kg4 {[%emt 0:02:33]} 51. Kd5 {[%emt 0:00:14]} Bf7+ {[%emt 0:03:48]} 52. Kd6 {[%emt 0:00:14]} Bc4 {[%emt 0:00:17]} 53. Kc5 {[%emt 0:01:51]} Be2 {[%emt 0:00:18]} 54. Bd8 {[%emt 0:00:13]} Kxf4 {[%emt 0:00:10]} 55. Bxf6 {[%emt 0:00:05]} Kg4 {[%emt 0:00:03]} 1/2-1/2